[Event "The Kvibergspelen 2023"]
[Site "Kviberg Park Hotel & Conference, Krutvagen 2, Gothenburg, Sweden"]
[Date "2023.09.17"]
[Round "7.11"]
[White "Lundstedt, Peter"]
[Black "Hamark, Jesper"]
[Result "1/2-1/2"]
[TimeControl "15 minutes + 5 seconds per move from move one (Round 1 - 4) / 90 minutes + 30 seconds per move from move one (Round 5 - 8)"]
[WhiteFideId "1718444"]
[BlackFideId "1704338"]
[WhiteElo "2099"]
[BlackElo "2342"]

1. d4 {[%clk 01:30:56]} {[%emt 00:00:02]} d5 {[%clk 01:28:22]} {[%emt
00:02:32]} 2. Nf3 {[%clk 01:31:23]} {[%emt 00:00:10]} Nc6 {[%clk 01:28:47]}
{[%emt 00:00:06]} 3. g3 {[%clk 01:31:43]} {[%emt 00:00:09]} Bg4 {[%clk
01:29:12]} {[%emt 00:00:05]} 4. Bg2 {[%clk 01:31:55]} {[%emt 00:00:18]} e6
{[%clk 01:29:28]} {[%emt 00:00:14]} 5. O-O {[%clk 01:32:03]} {[%emt 00:00:22]}
Nf6 {[%clk 01:29:47]} {[%emt 00:00:12]} 6. c4 {[%clk 01:31:19]} {[%emt
00:01:14]} Bd6 {[%clk 01:29:58]} {[%emt 00:00:19]} 7. Nc3 {[%clk 01:31:26]}
{[%emt 00:00:23]} O-O {[%clk 01:29:20]} {[%emt 00:01:08]} 8. cxd5 {[%clk
01:29:52]} {[%emt 00:02:04]} Nxd5 {[%clk 01:29:40]} {[%emt 00:00:10]} 9. e4
{[%clk 01:21:05]} {[%emt 00:09:17]} Nb6 {[%clk 01:29:45]} {[%emt 00:00:25]} 10.
b3 {[%clk 01:21:16]} {[%emt 00:00:18]} f5 {[%clk 01:17:43]} {[%emt 00:12:32]}
11. h3 {[%clk 01:12:04]} {[%emt 00:09:42]} Bb4 {[%clk 01:03:44]} {[%emt
00:14:30]} 12. Ne2 {[%clk 00:59:04]} {[%emt 00:13:30]} fxe4 {[%clk 01:02:48]}
{[%emt 00:01:26]} 13. Ng5 {[%clk 00:59:25]} {[%emt 00:00:09]} Bf5 {[%clk
00:39:38]} {[%emt 00:23:39]} 14. Nxe4 {[%clk 00:53:44]} {[%emt 00:06:12]} Nd5
{[%clk 00:38:08]} {[%emt 00:01:59]} 15. Bb2 {[%clk 00:53:32]} {[%emt 00:00:42]}
Qe8 {[%clk 00:34:53]} {[%emt 00:03:45]} 16. Rc1 {[%clk 00:48:49]} {[%emt
00:05:13]} Rd8 {[%clk 00:34:59]} {[%emt 00:00:25]} 17. Nc5 {[%clk 00:45:53]}
{[%emt 00:03:25]} Bxc5 {[%clk 00:34:58]} {[%emt 00:00:31]} 18. Rxc5 {[%clk
00:46:15]} {[%emt 00:00:08]} Rd7 {[%clk 00:30:34]} {[%emt 00:04:54]} 19. a3
{[%clk 00:39:00]} {[%emt 00:07:45]} Qf7 {[%clk 00:30:06]} {[%emt 00:00:58]} 20.
Qc1 {[%clk 00:38:14]} {[%emt 00:01:16]} h6 {[%clk 00:26:43]} {[%emt 00:03:54]}
21. b4 {[%clk 00:25:11]} {[%emt 00:13:33]} a6 {[%clk 00:26:42]} {[%emt
00:00:31]} 22. Nf4 {[%clk 00:21:48]} {[%emt 00:03:52]} Nxf4 {[%clk 00:18:40]}
{[%emt 00:08:32]} 23. Qxf4 {[%clk 00:22:09]} {[%emt 00:00:09]} Bd3 {[%clk
00:17:43]} {[%emt 00:01:27]} 24. Qxf7+ {[%clk 00:22:33]} {[%emt 00:00:06]}
Rdxf7 {[%clk 00:18:07]} {[%emt 00:00:06]} 25. Rd1 {[%clk 00:22:59]} {[%emt
00:00:04]} Rxf2 {[%clk 00:18:24]} {[%emt 00:00:13]} 26. Bc3 {[%clk 00:23:23]}
{[%emt 00:00:06]} Bb5 {[%clk 00:16:38]} {[%emt 00:02:17]} 27. Re1 {[%clk
00:20:05]} {[%emt 00:03:48]} Ne7 {[%clk 00:02:36]} {[%emt 00:14:31]} 28. Rxe6
{[%clk 00:18:52]} {[%emt 00:01:43]} Bf1 {[%clk 00:02:11]} {[%emt 00:00:55]} 29.
Rxe7 {[%clk 00:14:57]} {[%emt 00:04:25]} Rxg2+ {[%clk 00:00:39]} {[%emt
00:02:01]} 30. Kh1 {[%clk 00:15:23]} {[%emt 00:00:05]} Rc2 {[%clk 00:00:38]}
{[%emt 00:00:31]} 31. Be1 {[%clk 00:13:35]} {[%emt 00:02:18]} Rxc5 {[%clk
00:00:45]} {[%emt 00:00:24]} 32. dxc5 {[%clk 00:13:42]} {[%emt 00:00:22]} Bxh3
{[%clk 00:00:36]} {[%emt 00:00:39]} 33. Rxc7 {[%clk 00:13:33]} {[%emt
00:00:39]} Rf7 {[%clk 00:00:34]} {[%emt 00:00:33]} 34. Rxf7 {[%clk 00:13:50]}
{[%emt 00:00:12]} Kxf7 {[%clk 00:01:03]} {[%emt 00:00:02]} 35. Kg1 {[%clk
00:14:01]} {[%emt 00:00:18]} Ke6 {[%clk 00:01:24]} {[%emt 00:00:09]} 36. Kf2
{[%clk 00:14:25]} {[%emt 00:00:06]} Kd5 {[%clk 00:01:51]} {[%emt 00:00:03]} 37.
Ke3 {[%clk 00:14:27]} {[%emt 00:00:29]} Kc4 {[%clk 00:02:15]} {[%emt 00:00:05]}
38. a4 {[%clk 00:14:51]} {[%emt 00:00:06]} g5 {[%clk 00:01:52]} {[%emt
00:00:54]} 39. Ke4 {[%clk 00:10:44]} {[%emt 00:04:36]} Bd7 {[%clk 00:02:13]}
{[%emt 00:00:09]} 40. a5 {[%clk 00:11:07]} {[%emt 00:00:09]} Bh3 {[%clk
00:01:18]} {[%emt 00:01:23]} 41. Ke3 {[%clk 00:10:13]} {[%emt 00:01:24]} Bg2
{[%clk 00:01:41]} {[%emt 00:00:06]} 42. Kf2 {[%clk 00:10:23]} {[%emt 00:00:21]}
Bd5 {[%clk 00:02:09]} {[%emt 00:00:03]} 43. g4 {[%clk 00:09:38]} {[%emt
00:01:07]} Kd3 {[%clk 00:01:19]} {[%emt 00:01:27]} 44. Kg3 {[%clk 00:09:55]}
{[%emt 00:00:14]} Be6 {[%clk 00:01:01]} {[%emt 00:00:47]} 45. Kf3 {[%clk
00:10:12]} {[%emt 00:00:14]} Bf7 {[%clk 00:01:24]} {[%emt 00:00:06]} 46. Kg3
{[%clk 00:10:30]} {[%emt 00:00:12]} Bd5 {[%clk 00:01:51]} {[%emt 00:00:03]} 47.
Bf2 {[%clk 00:10:32]} {[%emt 00:00:28]} Bc6 {[%clk 00:01:47]} {[%emt 00:00:34]}
48. Be1 {[%clk 00:10:56]} {[%emt 00:00:06]} Be8 {[%clk 00:01:51]} {[%emt
00:00:26]} 49. Kf3 {[%clk 00:11:11]} {[%emt 00:00:15]} Bf7 {[%clk 00:00:47]}
{[%emt 00:01:34]} 50. Kg3 {[%clk 00:11:27]} {[%emt 00:00:14]} Be8 {[%clk
00:01:16]} {[%emt 00:00:01]} 51. Kf3 {[%clk 00:11:50]} {[%emt 00:00:07]} Bg6
{[%clk 00:01:43]} {[%emt 00:00:03]} 52. Kg3 {[%clk 00:12:14]} {[%emt 00:00:06]}
Be4 {[%clk 00:02:08]} {[%emt 00:00:05]} 53. Bf2 {[%clk 00:12:35]} {[%emt
00:00:10]} Bd5 {[%clk 00:02:36]} {[%emt 00:00:01]} 54. Be1 {[%clk 00:12:56]}
{[%emt 00:00:09]} Bc6 {[%clk 00:03:06]} {[%emt 00:00:01]} 55. Bf2 {[%clk
00:13:14]} {[%emt 00:00:11]} Ba4 {[%clk 00:03:33]} {[%emt 00:00:04]} 56. Be1
{[%clk 00:13:28]} {[%emt 00:00:16]} Bb5 {[%clk 00:04:00]} {[%emt 00:00:02]} 57.
Bf2 {[%clk 00:13:49]} {[%emt 00:00:08]} Bc4 {[%clk 00:04:26]} {[%emt 00:00:04]}
58. Be1 {[%clk 00:14:11]} {[%emt 00:00:09]} Be6 {[%clk 00:04:54]} {[%emt
00:00:02]} 59. Kf3 {[%clk 00:14:29]} {[%emt 00:00:13]} Bg8 {[%clk 00:05:15]}
{[%emt 00:00:08]} 60. Kg3 {[%clk 00:14:55]} {[%emt 00:00:04]} Bh7 {[%clk
00:05:40]} {[%emt 00:00:04]} 61. Kf3 {[%clk 00:15:16]} {[%emt 00:00:10]} Bg6
{[%clk 00:06:03]} {[%emt 00:00:07]} 62. Kg3 {[%clk 00:15:40]} {[%emt 00:00:07]}
Ke2 {[%clk 00:00:36]} {[%emt 00:05:57]} 63. Bc3 {[%clk 00:12:54]} {[%emt
00:03:16]} Be8 {[%clk 00:00:56]} {[%emt 00:00:09]} 64. Bg7 {[%clk 00:11:47]}
{[%emt 00:01:37]} h5 {[%clk 00:01:20]} {[%emt 00:00:06]} 65. gxh5 {[%clk
00:12:07]} {[%emt 00:00:10]} Bxh5 {[%clk 00:01:43]} {[%emt 00:00:07]} 66. Bf6
{[%clk 00:11:53]} {[%emt 00:00:44]} Kd3 {[%clk 00:01:06]} {[%emt 00:01:07]} 67.
Bxg5 {[%clk 00:12:06]} {[%emt 00:00:17]} Kc4 {[%clk 00:00:52]} {[%emt
00:00:44]} 1/2-1/2

[Event "The Kvibergspelen 2023"]
[Site "Kviberg Park Hotel & Conference, Krutvagen 2, Gothenburg, Sweden"]
[Date "2023.09.17"]
[Round "7.12"]
[White "Cederstam, Carl"]
[Black "Anderzen, Robert"]
[Result "1-0"]
[TimeControl "15 minutes + 5 seconds per move from move one (Round 1 - 4) / 90 minutes + 30 seconds per move from move one (Round 5 - 8)"]
[WhiteTitle "FM"]
[WhiteFideId "1713329"]
[BlackFideId "1716239"]
[WhiteElo "2232"]
[BlackElo "2112"]

1. c4 {[%clk 01:30:29]} {[%emt 00:00:30]} Nf6 {[%clk 01:30:19]} {[%emt
00:00:41]} 2. g3 {[%clk 01:30:48]} {[%emt 00:00:11]} c5 {[%clk 01:25:03]}
{[%emt 00:05:46]} 3. Bg2 {[%clk 01:31:10]} {[%emt 00:00:09]} d5 {[%clk
01:22:33]} {[%emt 00:02:59]} 4. cxd5 {[%clk 01:31:33]} {[%emt 00:00:07]} Nxd5
{[%clk 01:23:00]} {[%emt 00:00:02]} 5. Nc3 {[%clk 01:23:07]} {[%emt 00:08:57]}
Nc7 {[%clk 01:21:13]} {[%emt 00:02:17]} 6. Nf3 {[%clk 01:15:54]} {[%emt
00:07:43]} Nc6 {[%clk 01:18:39]} {[%emt 00:03:04]} 7. a3 {[%clk 01:16:18]}
{[%emt 00:00:06]} a5 {[%clk 00:57:43]} {[%emt 00:21:26]} 8. Na4 {[%clk
01:01:14]} {[%emt 00:15:34]} e5 {[%clk 00:45:16]} {[%emt 00:12:56]} 9. Nb6
{[%clk 01:00:14]} {[%emt 00:01:30]} Rb8 {[%clk 00:44:40]} {[%emt 00:01:07]} 10.
Nxc8 {[%clk 00:48:46]} {[%emt 00:11:58]} Rxc8 {[%clk 00:45:05]} {[%emt
00:00:06]} 11. Qb3 {[%clk 00:46:59]} {[%emt 00:02:16]} Qd7 {[%clk 00:40:32]}
{[%emt 00:05:03]} 12. Qxb7 {[%clk 00:47:04]} {[%emt 00:00:25]} e4 {[%clk
00:38:28]} {[%emt 00:02:33]} 13. Bh3 {[%clk 00:45:30]} {[%emt 00:02:05]} Ne6
{[%clk 00:33:20]} {[%emt 00:05:37]} 14. Qxd7+ {[%clk 00:44:15]} {[%emt
00:01:46]} Kxd7 {[%clk 00:33:48]} {[%emt 00:00:03]} 15. Ng5 {[%clk 00:44:08]}
{[%emt 00:00:36]} Ncd4 {[%clk 00:33:43]} {[%emt 00:00:35]} 16. Nxe6 {[%clk
00:43:54]} {[%emt 00:00:45]} fxe6 {[%clk 00:33:59]} {[%emt 00:00:13]} 17. Rb1
{[%clk 00:43:01]} {[%emt 00:01:23]} Rb8 {[%clk 00:32:35]} {[%emt 00:01:54]} 18.
Bg2 {[%clk 00:35:02]} {[%emt 00:08:28]} Nc2+ {[%clk 00:25:12]} {[%emt
00:07:54]} 19. Kf1 {[%clk 00:35:26]} {[%emt 00:00:06]} Nxa3 {[%clk 00:25:22]}
{[%emt 00:00:21]} 20. Ra1 {[%clk 00:35:50]} {[%emt 00:00:05]} Nc4 {[%clk
00:25:43]} {[%emt 00:00:09]} 21. Bxe4 {[%clk 00:35:24]} {[%emt 00:00:56]} Nd6
{[%clk 00:22:39]} {[%emt 00:03:33]} 22. Bc2 {[%clk 00:32:34]} {[%emt 00:03:21]}
Be7 {[%clk 00:21:44]} {[%emt 00:01:24]} 23. Rxa5 {[%clk 00:32:03]} {[%emt
00:01:02]} Bf6 {[%clk 00:21:25]} {[%emt 00:00:48]} 24. Ba4+ {[%clk 00:31:03]}
{[%emt 00:01:31]} Ke7 {[%clk 00:20:41]} {[%emt 00:01:13]} 25. Ra7+ {[%clk
00:31:26]} {[%emt 00:00:09]} Kf8 {[%clk 00:20:56]} {[%emt 00:00:14]} 26. b3
{[%clk 00:31:40]} {[%emt 00:00:16]} 1-0

[Event "The Kvibergspelen 2023"]
[Site "Kviberg Park Hotel & Conference, Krutvagen 2, Gothenburg, Sweden"]
[Date "2023.09.17"]
[Round "7.13"]
[White "Stenman, Christoffer"]
[Black "Hansen, Lars"]
[Result "0-1"]
[TimeControl "15 minutes + 5 seconds per move from move one (Round 1 - 4) / 90 minutes + 30 seconds per move from move one (Round 5 - 8)"]
[WhiteFideId "1713604"]
[BlackFideId "1402528"]
[WhiteElo "1896"]
[BlackElo "2188"]

1. e4 {[%clk 01:30:57]} {[%emt 00:00:02]} g6 {[%clk 01:27:25]} {[%emt
00:03:37]} 2. d4 {[%clk 01:31:10]} {[%emt 00:00:16]} Bg7 {[%clk 01:27:51]}
{[%emt 00:00:04]} 3. Nf3 {[%clk 01:30:22]} {[%emt 00:01:18]} d6 {[%clk
01:27:59]} {[%emt 00:00:22]} 4. c4 {[%clk 01:28:27]} {[%emt 00:02:24]} Nc6
{[%clk 01:21:17]} {[%emt 00:07:13]} 5. Nc3 {[%clk 01:22:28]} {[%emt 00:06:29]}
Bg4 {[%clk 01:21:16]} {[%emt 00:00:30]} 6. Be3 {[%clk 01:17:50]} {[%emt
00:05:08]} e5 {[%clk 01:21:34]} {[%emt 00:00:13]} 7. d5 {[%clk 01:10:56]}
{[%emt 00:07:24]} Nd4 {[%clk 01:21:44]} {[%emt 00:00:21]} 8. Be2 {[%clk
01:08:32]} {[%emt 00:02:54]} Nxe2 {[%clk 01:15:19]} {[%emt 00:06:54]} 9. Nxe2
{[%clk 01:02:39]} {[%emt 00:06:22]} Nf6 {[%clk 01:11:51]} {[%emt 00:03:59]} 10.
Nd2 {[%clk 00:56:28]} {[%emt 00:06:41]} O-O {[%clk 01:11:58]} {[%emt 00:00:24]}
11. f3 {[%clk 00:56:06]} {[%emt 00:00:50]} Bd7 {[%clk 01:12:17]} {[%emt
00:00:11]} 12. O-O {[%clk 00:48:00]} {[%emt 00:08:36]} Ne8 {[%clk 01:12:20]}
{[%emt 00:00:28]} 13. b4 {[%clk 00:39:42]} {[%emt 00:08:47]} f5 {[%clk
01:12:37]} {[%emt 00:00:14]} 14. c5 {[%clk 00:38:15]} {[%emt 00:01:58]} f4
{[%clk 01:11:58]} {[%emt 00:01:08]} 15. Bf2 {[%clk 00:38:38]} {[%emt 00:00:06]}
g5 {[%clk 01:12:19]} {[%emt 00:00:10]} 16. Rc1 {[%clk 00:34:20]} {[%emt
00:04:48]} b6 {[%clk 01:10:34]} {[%emt 00:02:16]} 17. a4 {[%clk 00:31:45]}
{[%emt 00:03:04]} h5 {[%clk 01:10:11]} {[%emt 00:00:52]} 18. Qb3 {[%clk
00:27:25]} {[%emt 00:04:50]} Rf7 {[%clk 01:08:57]} {[%emt 00:01:44]} 19. cxd6
{[%clk 00:21:38]} {[%emt 00:06:18]} cxd6 {[%clk 01:09:00]} {[%emt 00:00:27]} 20.
Rc2 {[%clk 00:16:51]} {[%emt 00:05:17]} g4 {[%clk 01:09:08]} {[%emt 00:00:22]}
21. Rfc1 {[%clk 00:16:48]} {[%emt 00:00:33]} Bh6 {[%clk 01:08:55]} {[%emt
00:00:43]} 22. Rc6 {[%clk 00:13:12]} {[%emt 00:04:06]} Rg7 {[%clk 01:06:44]}
{[%emt 00:02:40]} 23. Kf1 {[%clk 00:05:35]} {[%emt 00:08:08]} Qg5 {[%clk
01:04:39]} {[%emt 00:02:33]} 24. Nc4 {[%clk 00:05:16]} {[%emt 00:00:51]} gxf3
{[%clk 00:55:15]} {[%emt 00:09:54]} 25. gxf3 {[%clk 00:05:42]} {[%emt
00:00:04]} Qg2+ {[%clk 00:53:47]} {[%emt 00:01:57]} 26. Ke1 {[%clk 00:06:04]}
{[%emt 00:00:08]} Qxh2 {[%clk 00:52:07]} {[%emt 00:02:10]} 27. Bxb6 {[%clk
00:04:11]} {[%emt 00:02:24]} Bxc6 {[%clk 00:36:07]} {[%emt 00:16:29]} 28. dxc6
{[%clk 00:04:39]} {[%emt 00:00:02]} Kh8 {[%clk 00:36:13]} {[%emt 00:00:24]} 29.
Nxd6 {[%clk 00:03:26]} {[%emt 00:01:44]} axb6 {[%clk 00:26:05]} {[%emt
00:10:39]} 30. Qe6 {[%clk 00:03:04]} {[%emt 00:00:50]} Qh4+ {[%clk 00:16:09]}
{[%emt 00:10:24]} 31. Kd2 {[%clk 00:02:26]} {[%emt 00:01:10]} Qe7 {[%clk
00:11:25]} {[%emt 00:05:13]} 32. Qxe7 {[%clk 00:01:21]} {[%emt 00:01:37]} Rxe7
{[%clk 00:11:49]} {[%emt 00:00:05]} 33. Nf5 {[%clk 00:00:41]} {[%emt 00:01:11]}
Re6 {[%clk 00:11:43]} {[%emt 00:00:35]} 34. Nxh6 {[%clk 00:00:52]} {[%emt
00:00:20]} Rxh6 {[%clk 00:12:05]} {[%emt 00:00:07]} 35. a5 {[%clk 00:01:20]}
{[%emt 00:00:03]} Rd6+ {[%clk 00:11:32]} {[%emt 00:01:03]} 36. Ke1 {[%clk
00:01:46]} {[%emt 00:00:04]} bxa5 {[%clk 00:08:44]} {[%emt 00:03:18]} 37. b5
{[%clk 00:02:14]} {[%emt 00:00:02]} Rb8 {[%clk 00:08:35]} {[%emt 00:00:38]} 38.
Nc3 {[%clk 00:01:48]} {[%emt 00:00:57]} Nc7 {[%clk 00:08:40]} {[%emt 00:00:24]}
39. Rb1 {[%clk 00:02:10]} {[%emt 00:00:08]} a4 {[%clk 00:06:04]} {[%emt
00:03:06]} 40. Nd5 {[%clk 00:00:54]} {[%emt 00:01:46]} Rxb5 {[%clk 00:04:30]}
{[%emt 00:02:04]} 41. Rxb5 {[%clk 00:01:13]} {[%emt 00:00:12]} Nxb5 {[%clk
00:04:52]} {[%emt 00:00:07]} 0-1

[Event "The Kvibergspelen 2023"]
[Site "Kviberg Park Hotel & Conference, Krutvagen 2, Gothenburg, Sweden"]
[Date "2023.09.17"]
[Round "7.14"]
[White "Hagevi, Vidar"]
[Black "Frisk, Ellinor"]
[Result "1/2-1/2"]
[TimeControl "15 minutes + 5 seconds per move from move one (Round 1 - 4) / 90 minutes + 30 seconds per move from move one (Round 5 - 8)"]
[BlackTitle "WIM"]
[WhiteFideId "1767526"]
[BlackFideId "1708481"]
[WhiteElo "2037"]
[BlackElo "2166"]

1. e4 {[%clk 01:30:51]} {[%emt 00:00:08]} c5 {[%clk 01:30:57]} {[%emt
00:00:04]} 2. Nc3 {[%clk 01:30:51]} {[%emt 00:00:30]} g6 {[%clk 01:31:06]}
{[%emt 00:00:20]} 3. d3 {[%clk 01:29:05]} {[%emt 00:02:16]} Bg7 {[%clk
01:31:16]} {[%emt 00:00:21]} 4. g3 {[%clk 01:28:49]} {[%emt 00:00:46]} Nc6
{[%clk 01:31:33]} {[%emt 00:00:12]} 5. Bg2 {[%clk 01:29:08]} {[%emt 00:00:12]}
e6 {[%clk 01:29:59]} {[%emt 00:02:05]} 6. Be3 {[%clk 01:29:15]} {[%emt
00:00:22]} d6 {[%clk 01:30:22]} {[%emt 00:00:07]} 7. Qd2 {[%clk 01:29:00]}
{[%emt 00:00:44]} Rb8 {[%clk 01:30:40]} {[%emt 00:00:13]} 8. Nge2 {[%clk
01:28:51]} {[%emt 00:00:39]} Nd4 {[%clk 01:10:16]} {[%emt 00:20:54]} 9. O-O
{[%clk 01:28:04]} {[%emt 00:01:16]} Ne7 {[%clk 01:10:20]} {[%emt 00:00:28]} 10.
Nc1 {[%clk 01:23:54]} {[%emt 00:04:39]} O-O {[%clk 01:10:25]} {[%emt 00:00:25]}
11. Nd1 {[%clk 01:23:24]} {[%emt 00:01:00]} b6 {[%clk 00:50:04]} {[%emt
00:20:52]} 12. c3 {[%clk 01:16:32]} {[%emt 00:07:21]} Ndc6 {[%clk 00:50:24]}
{[%emt 00:00:10]} 13. Bh6 {[%clk 01:08:43]} {[%emt 00:08:19]} d5 {[%clk
00:48:50]} {[%emt 00:02:04]} 14. Bxg7 {[%clk 01:00:48]} {[%emt 00:08:24]} Kxg7
{[%clk 00:49:18]} {[%emt 00:00:02]} 15. Qg5 {[%clk 00:58:51]} {[%emt 00:02:27]}
dxe4 {[%clk 00:46:42]} {[%emt 00:03:07]} 16. dxe4 {[%clk 00:55:27]} {[%emt
00:03:53]} h6 {[%clk 00:44:58]} {[%emt 00:02:14]} 17. Qe3 {[%clk 00:46:13]}
{[%emt 00:09:44]} Ba6 {[%clk 00:44:56]} {[%emt 00:00:33]} 18. Re1 {[%clk
00:45:25]} {[%emt 00:01:17]} Qd7 {[%clk 00:42:33]} {[%emt 00:02:53]} 19. Bf1
{[%clk 00:42:34]} {[%emt 00:03:22]} Bxf1 {[%clk 00:42:07]} {[%emt 00:00:56]} 20.
Kxf1 {[%clk 00:42:49]} {[%emt 00:00:13]} Rfd8 {[%clk 00:39:41]} {[%emt
00:02:57]} 21. Qe2 {[%clk 00:42:37]} {[%emt 00:00:42]} b5 {[%clk 00:34:36]}
{[%emt 00:05:35]} 22. Ne3 {[%clk 00:41:15]} {[%emt 00:01:52]} c4 {[%clk
00:34:00]} {[%emt 00:01:07]} 23. a4 {[%clk 00:39:28]} {[%emt 00:02:17]} a6
{[%clk 00:33:56]} {[%emt 00:00:34]} 24. axb5 {[%clk 00:36:17]} {[%emt
00:03:41]} axb5 {[%clk 00:34:24]} {[%emt 00:00:03]} 25. b3 {[%clk 00:35:19]}
{[%emt 00:01:27]} cxb3 {[%clk 00:25:46]} {[%emt 00:09:08]} 26. Nxb3 {[%clk
00:35:40]} {[%emt 00:00:09]} Qd3 {[%clk 00:26:00]} {[%emt 00:00:15]} 27. Qxd3
{[%clk 00:31:11]} {[%emt 00:04:59]} Rxd3 {[%clk 00:26:28]} {[%emt 00:00:02]} 28.
Rec1 {[%clk 00:30:06]} {[%emt 00:01:34]} b4 {[%clk 00:21:19]} {[%emt 00:05:40]}
29. Nc5 {[%clk 00:30:24]} {[%emt 00:00:12]} Rxc3 {[%clk 00:21:30]} {[%emt
00:00:20]} 30. Rxc3 {[%clk 00:30:10]} {[%emt 00:00:44]} bxc3 {[%clk 00:21:58]}
31. Rc1 {[%clk 00:30:16]} {[%emt 00:00:23]} Nd4 {[%clk 00:21:24]} {[%emt
00:01:05]} 32. Rxc3 {[%clk 00:24:17]} {[%emt 00:06:29]} Rb1+ {[%clk 00:21:48]}
{[%emt 00:00:06]} 33. Kg2 {[%clk 00:24:37]} {[%emt 00:00:09]} Nec6 {[%clk
00:21:22]} {[%emt 00:00:58]} 34. Nd3 {[%clk 00:18:05]} {[%emt 00:07:02]} h5
{[%clk 00:20:36]} {[%emt 00:01:16]} 35. h4 {[%clk 00:17:23]} {[%emt 00:01:11]}
Kf6 {[%clk 00:20:14]} {[%emt 00:00:52]} 36. Nc2 {[%clk 00:13:53]} {[%emt
00:04:00]} Rg1+ {[%clk 00:16:09]} {[%emt 00:04:35]} 37. Kxg1 {[%clk 00:12:59]}
{[%emt 00:01:24]} Ne2+ {[%clk 00:16:34]} {[%emt 00:00:05]} 38. Kg2 {[%clk
00:13:05]} {[%emt 00:00:25]} Nxc3 {[%clk 00:16:59]} {[%emt 00:00:05]} 39. f3
{[%clk 00:13:09]} {[%emt 00:00:24]} Ne5 {[%clk 00:14:50]} {[%emt 00:02:40]} 40.
Nxe5 {[%clk 00:10:15]} {[%emt 00:03:24]} Kxe5 {[%clk 00:15:18]} {[%emt
00:00:03]} 41. Kf2 {[%clk 00:10:26]} {[%emt 00:00:19]} Nb5 {[%clk 00:15:09]}
{[%emt 00:00:39]} 1/2-1/2